[Event "Late-Titled-Tuesday-Blitz-October-10-2023"]
[Site "Chess.com"]
[Date "2023.10.10"]
[Round "4"]
[White "familijatop71"]
[Black "IMGC"]
[Result "0-1"]
[WhiteElo "2152"]
[BlackElo "2409"]
[TimeControl "180+1"]
[EndTime "14:37:12 PDT"]
[Termination "IMGC won by checkmate"]

1. e4 {[%clk 0:03:00.9]} 1... b6 {[%clk 0:02:58.2]} 2. d4 {[%clk 0:02:59.2]}
2... Bb7 {[%clk 0:02:58.5]} 3. Bd3 {[%clk 0:02:59.6]} 3... e6 {[%clk 0:02:57.9]}
4. Nc3 {[%clk 0:02:59.3]} 4... Nf6 {[%clk 0:02:54.2]} 5. Nge2 {[%clk 0:02:59]}
5... c5 {[%clk 0:02:52.8]} 6. d5 {[%clk 0:02:58]} 6... exd5 {[%clk 0:02:50.6]}
7. exd5 {[%clk 0:02:58.9]} 7... Nxd5 {[%clk 0:02:35.7]} 8. Nxd5 {[%clk
0:02:59.4]} 8... Bxd5 {[%clk 0:02:35.4]} 9. Nf4 {[%clk 0:02:59.9]} 9... Bc6
{[%clk 0:02:31.6]} 10. O-O {[%clk 0:02:58.7]} 10... Be7 {[%clk 0:02:31]} 11. Re1
{[%clk 0:02:58.5]} 11... Kf8 {[%clk 0:02:22.9]} 12. Qh5 {[%clk 0:02:54.6]} 12...
Kg8 {[%clk 0:01:56]} 13. Bd2 {[%clk 0:02:47.6]} 13... g6 {[%clk 0:01:54.3]} 14.
Qh3 {[%clk 0:02:32.3]} 14... Bf6 {[%clk 0:01:48.9]} 15. Re3 {[%clk 0:02:18.8]}
15... d6 {[%clk 0:01:41.8]} 16. Rg3 {[%clk 0:02:07.3]} 16... Nd7 {[%clk
0:01:21.2]} 17. Nh5 {[%clk 0:02:02.1]} 17... Ne5 {[%clk 0:01:15.4]} 18. Nxf6+
{[%clk 0:01:47]} 18... Qxf6 {[%clk 0:01:16.3]} 19. Re1 {[%clk 0:01:44.8]} 19...
b5 {[%clk 0:00:52]} 20. f4 {[%clk 0:01:42.7]} 20... Nxd3 {[%clk 0:00:46.9]} 21.
Bc3 {[%clk 0:01:13.5]} 21... Qxc3 {[%clk 0:00:36.2]} 22. bxc3 {[%clk 0:01:10.7]}
22... Nxe1 {[%clk 0:00:36.7]} 23. f5 {[%clk 0:00:57.9]} 23... Kg7 {[%clk
0:00:34.9]} 24. Qh4 {[%clk 0:00:42.9]} 24... f6 {[%clk 0:00:17.4]} 25. Re3
{[%clk 0:00:40.1]} 25... Rae8 {[%clk 0:00:15.7]} 26. Rxe1 {[%clk 0:00:39.3]}
26... Rxe1+ {[%clk 0:00:14.7]} 27. Qxe1 {[%clk 0:00:39.2]} 27... Re8 {[%clk
0:00:15.6]} 28. Qf2 {[%clk 0:00:38.4]} 28... Re5 {[%clk 0:00:14.5]} 29. h3
{[%clk 0:00:36.1]} 29... Rxf5 {[%clk 0:00:13.4]} 30. Qg3 {[%clk 0:00:34.7]}
30... Re5 {[%clk 0:00:10.8]} 31. Qd3 {[%clk 0:00:30.5]} 31... d5 {[%clk
0:00:09.4]} 32. a4 {[%clk 0:00:29.1]} 32... a6 {[%clk 0:00:08.4]} 33. Qd2 {[%clk
0:00:26.2]} 33... h5 {[%clk 0:00:05.4]} 34. Qf2 {[%clk 0:00:26.7]} 34... d4
{[%clk 0:00:04]} 35. cxd4 {[%clk 0:00:26.1]} 35... cxd4 {[%clk 0:00:04.9]} 36.
Qxd4 {[%clk 0:00:26.1]} 36... bxa4 {[%clk 0:00:05.2]} 37. Qa7+ {[%clk
0:00:24.5]} 37... Kh6 {[%clk 0:00:04.5]} 38. Qxa6 {[%clk 0:00:24.8]} 38... Bd5
{[%clk 0:00:02]} 39. Qd3 {[%clk 0:00:23.9]} 39... Rg5 {[%clk 0:00:02.8]} 40. Qd2
{[%clk 0:00:22.4]} 40... Kg7 {[%clk 0:00:02.2]} 41. g4 {[%clk 0:00:21.9]} 41...
hxg4 {[%clk 0:00:02.3]} 42. h4 {[%clk 0:00:22.1]} 42... Re5 {[%clk 0:00:02.7]}
43. c3 {[%clk 0:00:21.1]} 43... Kh7 {[%clk 0:00:01.8]} 44. Qd4 {[%clk
0:00:21.7]} 44... Kh6 {[%clk 0:00:01]} 45. Qa7 {[%clk 0:00:22.6]} 45... Kh5
{[%clk 0:00:01.5]} 46. Qd4 {[%clk 0:00:22.9]} 46... Kxh4 {[%clk 0:00:01.8]} 47.
c4 {[%clk 0:00:23.2]} 47... Kg3 {[%clk 0:00:02]} 48. cxd5 {[%clk 0:00:21.7]}
48... Re1# {[%clk 0:00:01.6]} 0-1

[Event "Late-Titled-Tuesday-Blitz-October-10-2023"]
[Site "Chess.com"]
[Date "2023.10.10"]
[Round "4"]
[White "Mackster23"]
[Black "Necromon"]
[Result "0-1"]
[WhiteElo "2668"]
[BlackElo "2459"]
[TimeControl "180+1"]
[EndTime "14:37:14 PDT"]
[Termination "Necromon won by checkmate"]

1. e4 {[%clk 0:02:57.8]} 1... c5 {[%clk 0:02:59.8]} 2. Nf3 {[%clk 0:02:57.4]}
2... Nc6 {[%clk 0:03:00.2]} 3. d4 {[%clk 0:02:57.7]} 3... cxd4 {[%clk
0:03:01.1]} 4. Nxd4 {[%clk 0:02:58.2]} 4... g6 {[%clk 0:03:01.6]} 5. c4 {[%clk
0:02:56.3]} 5... Bg7 {[%clk 0:03:01.6]} 6. Be3 {[%clk 0:02:56.7]} 6... Nh6
{[%clk 0:03:01.9]} 7. Nc3 {[%clk 0:02:51.8]} 7... Ng4 {[%clk 0:03:01.5]} 8. Qxg4
{[%clk 0:02:51.3]} 8... Nxd4 {[%clk 0:03:01.8]} 9. Qd1 {[%clk 0:02:51.8]} 9...
Ne6 {[%clk 0:03:02.2]} 10. Be2 {[%clk 0:02:51.1]} 10... Qa5 {[%clk 0:03:01.8]}
11. Rc1 {[%clk 0:02:39.8]} 11... b6 {[%clk 0:03:01.7]} 12. O-O {[%clk 0:02:39]}
12... Bb7 {[%clk 0:03:02]} 13. f3 {[%clk 0:02:14.8]} 13... g5 {[%clk 0:02:55.9]}
14. a3 {[%clk 0:02:02.6]} 14... Rc8 {[%clk 0:02:46.1]} 15. Qd2 {[%clk
0:01:58.3]} 15... Rg8 {[%clk 0:02:32]} 16. Rfd1 {[%clk 0:01:53.5]} 16... d6
{[%clk 0:02:31.5]} 17. Bf1 {[%clk 0:01:37]} 17... Qe5 {[%clk 0:02:23.9]} 18. b4
{[%clk 0:01:24.7]} 18... h5 {[%clk 0:02:09.6]} 19. Qc2 {[%clk 0:00:37.5]} 19...
g4 {[%clk 0:01:33.6]} 20. Kh1 {[%clk 0:00:37.2]} 20... gxf3 {[%clk 0:01:29.7]}
21. gxf3 {[%clk 0:00:38.1]} 21... f5 {[%clk 0:01:07]} 22. Bg2 {[%clk 0:00:14]}
22... f4 {[%clk 0:00:40.7]} 23. Bf2 {[%clk 0:00:13.6]} 23... h4 {[%clk
0:00:30.3]} 24. Nd5 {[%clk 0:00:11.9]} 24... Ng5 {[%clk 0:00:23.1]} 25. Bxh4
{[%clk 0:00:08.8]} 25... e6 {[%clk 0:00:16.8]} 26. Nc3 {[%clk 0:00:04.9]} 26...
Rh8 {[%clk 0:00:14.7]} 27. Qf2 {[%clk 0:00:03.3]} 27... Rxc4 {[%clk 0:00:12.7]}
28. Ne2 {[%clk 0:00:03.1]} 28... Rxc1 {[%clk 0:00:12.7]} 29. Rxc1 {[%clk
0:00:04]} 29... Kd7 {[%clk 0:00:13]} 30. Bxg5 {[%clk 0:00:04.2]} 30... Qxg5
{[%clk 0:00:12.7]} 31. Ng1 {[%clk 0:00:04.7]} 31... Qh5 {[%clk 0:00:12.4]} 32.
h3 {[%clk 0:00:05.1]} 32... Qe5 {[%clk 0:00:11]} 33. Qe2 {[%clk 0:00:05.3]}
33... Rc8 {[%clk 0:00:11.2]} 34. Rd1 {[%clk 0:00:05]} 34... Rc3 {[%clk
0:00:10.6]} 35. Qa2 {[%clk 0:00:04.1]} 35... Re3 {[%clk 0:00:09.3]} 36. Ne2
{[%clk 0:00:03.8]} 36... Bf6 {[%clk 0:00:09.1]} 37. Nd4 {[%clk 0:00:04]} 37...
Qxd4 {[%clk 0:00:08.6]} 38. Rxd4 {[%clk 0:00:03.9]} 38... Bxd4 {[%clk
0:00:09.5]} 39. Qd2 {[%clk 0:00:03.8]} 39... e5 {[%clk 0:00:09.2]} 40. Qa2
{[%clk 0:00:03.3]} 40... Re1+ {[%clk 0:00:09.2]} 41. Kh2 {[%clk 0:00:03.5]}
41... Bg1+ {[%clk 0:00:09.4]} 42. Kh1 {[%clk 0:00:04.1]} 42... Bf2+ {[%clk
0:00:09.3]} 43. Kh2 {[%clk 0:00:04.3]} 43... Bg3# {[%clk 0:00:09.1]} 0-1

[Event "Late-Titled-Tuesday-Blitz-October-10-2023"]
[Site "Chess.com"]
[Date "2023.10.10"]
[Round "4"]
[White "EsmeraldasAnderson03"]
[Black "GMJustin"]
[Result "0-1"]
[WhiteElo "2430"]
[BlackElo "2190"]
[TimeControl "180+1"]
[EndTime "14:37:14 PDT"]
[Termination "GMJustin won by checkmate"]

1. d4 {[%clk 0:03:00.9]} 1... Nf6 {[%clk 0:02:48.7]} 2. c4 {[%clk 0:02:56.3]}
2... e6 {[%clk 0:02:47.8]} 3. Nc3 {[%clk 0:02:55.5]} 3... Bb4 {[%clk 0:02:46.1]}
4. f3 {[%clk 0:02:55.4]} 4... d5 {[%clk 0:02:35.1]} 5. a3 {[%clk 0:02:53.8]}
5... Bxc3+ {[%clk 0:02:31.1]} 6. bxc3 {[%clk 0:02:54.7]} 6... c5 {[%clk
0:02:28.2]} 7. cxd5 {[%clk 0:02:52]} 7... Nxd5 {[%clk 0:02:26.6]} 8. dxc5 {[%clk
0:02:50.9]} 8... Qa5 {[%clk 0:02:25.6]} 9. e4 {[%clk 0:02:49.8]} 9... Ne7 {[%clk
0:02:24.1]} 10. Be3 {[%clk 0:02:47.1]} 10... Qxc3+ {[%clk 0:02:16.9]} 11. Kf2
{[%clk 0:02:45.2]} 11... Nbc6 {[%clk 0:02:13.8]} 12. Ne2 {[%clk 0:02:43]} 12...
Qa5 {[%clk 0:02:04.7]} 13. Qb3 {[%clk 0:01:55.9]} 13... O-O {[%clk 0:01:46.7]}
14. Nc3 {[%clk 0:01:55.6]} 14... f5 {[%clk 0:01:29]} 15. Bc4 {[%clk 0:01:48.9]}
15... f4 {[%clk 0:01:16.5]} 16. Bxe6+ {[%clk 0:01:46.9]} 16... Kh8 {[%clk
0:01:06.7]} 17. Bxf4 {[%clk 0:00:42.2]} 17... Rxf4 {[%clk 0:00:59.5]} 18. Bxc8
{[%clk 0:00:41.4]} 18... Qxc5+ {[%clk 0:00:54.2]} 19. Kg3 {[%clk 0:00:41.3]}
19... Qg5+ {[%clk 0:00:13.7]} 20. Bg4 {[%clk 0:00:40.8]} 20... h5 {[%clk
0:00:09.7]} 21. h4 {[%clk 0:00:39.4]} 21... Qe5 {[%clk 0:00:09.2]} 22. Qe6
{[%clk 0:00:34.2]} 22... Rxg4+ {[%clk 0:00:07.1]} 23. Kf2 {[%clk 0:00:31.1]}
23... Qxe6 {[%clk 0:00:07.1]} 24. fxg4 {[%clk 0:00:30.6]} 24... Rf8+ {[%clk
0:00:07.2]} 25. Ke3 {[%clk 0:00:30]} 25... Qxg4 {[%clk 0:00:06.8]} 26. Raf1
{[%clk 0:00:30.7]} 26... Qg3+ {[%clk 0:00:05.8]} 27. Rf3 {[%clk 0:00:31]} 27...
Rxf3+ {[%clk 0:00:05.5]} 28. gxf3 {[%clk 0:00:31.9]} 28... Ne5 {[%clk
0:00:05.7]} 29. Rf1 {[%clk 0:00:30.7]} 29... Qxh4 {[%clk 0:00:05.7]} 30. Ne2
{[%clk 0:00:31.1]} 30... g5 {[%clk 0:00:04.9]} 31. Nd4 {[%clk 0:00:30]} 31...
N5g6 {[%clk 0:00:03.9]} 32. Ne6 {[%clk 0:00:23.2]} 32... Qg3 {[%clk 0:00:03.7]}
33. Rd1 {[%clk 0:00:21.4]} 33... h4 {[%clk 0:00:03.5]} 34. Rd8+ {[%clk 0:00:22]}
34... Kh7 {[%clk 0:00:03.6]} 35. Rd7 {[%clk 0:00:22.6]} 35... Kh6 {[%clk
0:00:02.8]} 36. Nd4 {[%clk 0:00:13.6]} 36... Qe5 {[%clk 0:00:02.7]} 37. Rxb7
{[%clk 0:00:10.4]} 37... h3 {[%clk 0:00:02.7]} 38. Rb2 {[%clk 0:00:10.8]} 38...
h2 {[%clk 0:00:02.6]} 39. Rb1 {[%clk 0:00:11.5]} 39... Qf4+ {[%clk 0:00:02.7]}
40. Kf2 {[%clk 0:00:11.1]} 40... Nh4 {[%clk 0:00:02.9]} 41. Rh1 {[%clk
0:00:10.4]} 41... g4 {[%clk 0:00:02.8]} 42. Ne2 {[%clk 0:00:10.2]} 42... g3+
{[%clk 0:00:02.8]} 43. Ke1 {[%clk 0:00:09]} 43... Qe3 {[%clk 0:00:02.7]} 44. Rf1
{[%clk 0:00:09.9]} 44... g2 {[%clk 0:00:02.5]} 45. Kd1 {[%clk 0:00:07.7]} 45...
gxf1=Q+ {[%clk 0:00:02.3]} 46. Kc2 {[%clk 0:00:08.6]} 46... Qfxe2+ {[%clk
0:00:02.6]} 47. Kb1 {[%clk 0:00:08.9]} 47... Q3f2 {[%clk 0:00:03.2]} 48. Ka1
{[%clk 0:00:09.8]} 48... Qee1# {[%clk 0:00:03.6]} 0-1

[Event "Late-Titled-Tuesday-Blitz-October-10-2023"]
[Site "Chess.com"]
[Date "2023.10.10"]
[Round "4"]
[White "orestn"]
[Black "luizzy"]
[Result "1-0"]
[WhiteElo "2395"]
[BlackElo "2541"]
[TimeControl "180+1"]
[EndTime "14:37:19 PDT"]
[Termination "orestn won by checkmate"]

1. e4 {[%clk 0:02:59.4]} 1... c5 {[%clk 0:02:59.3]} 2. Nf3 {[%clk 0:02:59.2]}
2... g6 {[%clk 0:02:59.8]} 3. d4 {[%clk 0:02:59.1]} 3... cxd4 {[%clk 0:03:00.7]}
4. Nxd4 {[%clk 0:02:59.1]} 4... Nc6 {[%clk 0:03:00.6]} 5. c4 {[%clk 0:02:58.8]}
5... Bg7 {[%clk 0:03:00.4]} 6. Be3 {[%clk 0:02:58.4]} 6... Nf6 {[%clk
0:03:00.4]} 7. Nc3 {[%clk 0:02:58.5]} 7... O-O {[%clk 0:03:01]} 8. Be2 {[%clk
0:02:58.7]} 8... d6 {[%clk 0:02:56.7]} 9. O-O {[%clk 0:02:58.3]} 9... a6 {[%clk
0:02:55.2]} 10. f4 {[%clk 0:02:52]} 10... Ng4 {[%clk 0:02:39.2]} 11. Bxg4 {[%clk
0:02:47.6]} 11... Bxd4 {[%clk 0:02:23.6]} 12. Bxd4 {[%clk 0:02:44.6]} 12... Bxg4
{[%clk 0:02:23.4]} 13. Qd2 {[%clk 0:02:41.4]} 13... Nxd4 {[%clk 0:02:19.1]} 14.
Qxd4 {[%clk 0:02:40.9]} 14... Rc8 {[%clk 0:02:15.6]} 15. f5 {[%clk 0:02:37.2]}
15... Bh5 {[%clk 0:01:26.5]} 16. Nd5 {[%clk 0:02:29.1]} 16... Be2 {[%clk
0:01:11]} 17. Rf2 {[%clk 0:02:18.1]} 17... Rxc4 {[%clk 0:01:09.1]} 18. Qe3
{[%clk 0:02:06]} 18... Bh5 {[%clk 0:01:08.4]} 19. Nf4 {[%clk 0:01:59.8]} 19...
Qa5 {[%clk 0:00:50.1]} 20. Nxh5 {[%clk 0:01:56.6]} 20... gxh5 {[%clk 0:00:49.3]}
21. Qg5+ {[%clk 0:01:55.9]} 21... Kh8 {[%clk 0:00:50]} 22. Qxe7 {[%clk
0:01:54.2]} 22... Qd8 {[%clk 0:00:42.7]} 23. Qxb7 {[%clk 0:01:45.7]} 23... Qf6
{[%clk 0:00:38.5]} 24. Qxa6 {[%clk 0:01:39.6]} 24... Rxe4 {[%clk 0:00:38.2]} 25.
Qd3 {[%clk 0:01:31.6]} 25... Rfe8 {[%clk 0:00:38.3]} 26. Raf1 {[%clk 0:01:28.1]}
26... h4 {[%clk 0:00:36]} 27. a3 {[%clk 0:01:25.6]} 27... Re3 {[%clk 0:00:34.3]}
28. Qd2 {[%clk 0:01:18.4]} 28... h3 {[%clk 0:00:34]} 29. gxh3 {[%clk 0:01:18.1]}
29... Rxh3 {[%clk 0:00:31.2]} 30. Rg2 {[%clk 0:01:18]} 30... Rhe3 {[%clk
0:00:26]} 31. a4 {[%clk 0:00:56.9]} 31... Rb3 {[%clk 0:00:20.1]} 32. Rd1 {[%clk
0:00:49.3]} 32... Re7 {[%clk 0:00:01.6]} 33. a5 {[%clk 0:00:48.3]} 33... Ra7
{[%clk 0:00:01.9]} 34. Qxd6 {[%clk 0:00:43]} 34... Qxd6 {[%clk 0:00:02.3]} 35.
Rxd6 {[%clk 0:00:42.5]} 35... Ra8 {[%clk 0:00:02.1]} 36. f6 {[%clk 0:00:37.1]}
36... Rb5 {[%clk 0:00:02.4]} 37. Rgd2 {[%clk 0:00:35.3]} 37... h6 {[%clk
0:00:01.8]} 38. Rd8+ {[%clk 0:00:34.6]} 38... Rxd8 {[%clk 0:00:02.5]} 39. Rxd8+
{[%clk 0:00:34.6]} 39... Kh7 {[%clk 0:00:03.4]} 40. a6 {[%clk 0:00:33]} 40...
Ra5 {[%clk 0:00:02]} 41. Rd6 {[%clk 0:00:32.8]} 41... Ra1+ {[%clk 0:00:02.3]}
42. Kf2 {[%clk 0:00:32.9]} 42... Ra2 {[%clk 0:00:03.2]} 43. Ke3 {[%clk
0:00:32.4]} 43... Kg6 {[%clk 0:00:04.1]} 44. Rb6 {[%clk 0:00:31.1]} 44... Kf5
{[%clk 0:00:04.4]} 45. b4 {[%clk 0:00:30.7]} 45... Rxh2 {[%clk 0:00:03.4]} 46.
a7 {[%clk 0:00:29.7]} 46... Ra2 {[%clk 0:00:04.3]} 47. Rb7 {[%clk 0:00:29.3]}
47... Kxf6 {[%clk 0:00:04.2]} 48. b5 {[%clk 0:00:29.5]} 48... Ke6 {[%clk
0:00:04]} 49. b6 {[%clk 0:00:29.6]} 49... Kd6 {[%clk 0:00:04.3]} 50. Rb8 {[%clk
0:00:29.9]} 50... Kc6 {[%clk 0:00:04.6]} 51. a8=Q+ {[%clk 0:00:29.4]} 51... Rxa8
{[%clk 0:00:05.5]} 52. Rxa8 {[%clk 0:00:29.8]} 52... Kxb6 {[%clk 0:00:06.4]} 53.
Rf8 {[%clk 0:00:30.2]} 53... Kc5 {[%clk 0:00:06.2]} 54. Rxf7 {[%clk 0:00:30.5]}
54... Kd5 {[%clk 0:00:07.1]} 55. Kf4 {[%clk 0:00:29.9]} 55... Ke6 {[%clk
0:00:06.8]} 56. Rh7 {[%clk 0:00:30.6]} 56... Kf6 {[%clk 0:00:06.9]} 57. Rxh6+
{[%clk 0:00:31.2]} 57... Kg7 {[%clk 0:00:07.8]} 58. Kg5 {[%clk 0:00:31]} 58...
Kg8 {[%clk 0:00:08.2]} 59. Kf6 {[%clk 0:00:30.4]} 59... Kf8 {[%clk 0:00:08.4]}
60. Rh8# {[%clk 0:00:30.5]} 1-0

[Event "Late-Titled-Tuesday-Blitz-October-10-2023"]
[Site "Chess.com"]
[Date "2023.10.10"]
[Round "4"]
[White "vladislavkovalev"]
[Black "adricalderon8"]
[Result "1-0"]
[WhiteElo "2866"]
[BlackElo "2506"]
[TimeControl "180+1"]
[EndTime "14:37:20 PDT"]
[Termination "vladislavkovalev won by resignation"]

1. e4 {[%clk 0:03:00.9]} 1... c5 {[%clk 0:02:59.7]} 2. Nf3 {[%clk 0:03:01.2]}
2... d6 {[%clk 0:02:59.2]} 3. Bb5+ {[%clk 0:03:01.5]} 3... Nd7 {[%clk
0:02:58.9]} 4. O-O {[%clk 0:03:01.9]} 4... a6 {[%clk 0:02:58.2]} 5. Bd3 {[%clk
0:03:02.7]} 5... Ngf6 {[%clk 0:02:56.2]} 6. c3 {[%clk 0:03:03.2]} 6... b5 {[%clk
0:02:56.5]} 7. a4 {[%clk 0:03:03.6]} 7... Bb7 {[%clk 0:02:55.7]} 8. axb5 {[%clk
0:03:03.6]} 8... axb5 {[%clk 0:02:56.6]} 9. Rxa8 {[%clk 0:03:03.8]} 9... Qxa8
{[%clk 0:02:57.1]} 10. Bxb5 {[%clk 0:03:04.6]} 10... Bxe4 {[%clk 0:02:58]} 11.
d4 {[%clk 0:03:05.3]} 11... Bxb1 {[%clk 0:02:50.3]} 12. dxc5 {[%clk 0:03:05.7]}
12... Be4 {[%clk 0:02:41.1]} 13. cxd6 {[%clk 0:03:06]} 13... exd6 {[%clk
0:02:40.7]} 14. Re1 {[%clk 0:03:06]} 14... Be7 {[%clk 0:02:38.7]} 15. Qe2 {[%clk
0:03:06.2]} 15... O-O {[%clk 0:02:26.4]} 16. Bxd7 {[%clk 0:03:06]} 16... Bxf3
{[%clk 0:02:21.5]} 17. Qxf3 {[%clk 0:02:57.6]} 17... Qxf3 {[%clk 0:02:18]} 18.
gxf3 {[%clk 0:02:58.5]} 18... Nxd7 {[%clk 0:02:18.4]} 19. Rxe7 {[%clk
0:02:58.9]} 19... Ne5 {[%clk 0:02:18.3]} 20. Bf4 {[%clk 0:02:39.3]} 20... Ng6
{[%clk 0:01:48.2]} 21. Re4 {[%clk 0:02:36.3]} 21... d5 {[%clk 0:01:29.8]} 22.
Rb4 {[%clk 0:02:30.7]} 22... Re8 {[%clk 0:01:26.7]} 23. Rb8 {[%clk 0:02:10.3]}
23... Rxb8 {[%clk 0:01:25.8]} 24. Bxb8 {[%clk 0:02:11.2]} 24... Nh4 {[%clk
0:01:26.4]} 25. Kf1 {[%clk 0:01:35.2]} 25... Kf8 {[%clk 0:01:26.3]} 26. Ke2
{[%clk 0:01:34.7]} 26... Ke7 {[%clk 0:01:26.5]} 27. Bg3 {[%clk 0:01:33.3]} 27...
Nf5 {[%clk 0:01:24.9]} 28. Kd3 {[%clk 0:01:33.3]} 28... Kd7 {[%clk 0:01:24.5]}
29. c4 {[%clk 0:01:31.6]} 29... Kc6 {[%clk 0:01:18.8]} 30. b4 {[%clk 0:01:29.3]}
30... h5 {[%clk 0:01:18.8]} 31. h3 {[%clk 0:01:23]} 31... g5 {[%clk 0:01:13.9]}
32. Be5 {[%clk 0:01:13.1]} 32... dxc4+ {[%clk 0:01:05.5]} 33. Kxc4 {[%clk
0:01:14]} 33... Nh4 {[%clk 0:01:06]} 34. b5+ {[%clk 0:01:14.6]} 34... Kb7 {[%clk
0:01:06.2]} 35. f4 {[%clk 0:01:01.1]} 35... Ng6 {[%clk 0:00:56.6]} 36. Kd5
{[%clk 0:00:54.4]} 36... gxf4 {[%clk 0:00:56.5]} 37. Bd4 {[%clk 0:00:52.2]}
37... Nf8 {[%clk 0:00:37.7]} 38. f3 {[%clk 0:00:28.2]} 38... Ne6 {[%clk
0:00:36.5]} 39. h4 {[%clk 0:00:26.4]} 39... Nc7+ {[%clk 0:00:32.8]} 40. Kc4
{[%clk 0:00:24.4]} 40... Ne6 {[%clk 0:00:28.1]} 41. Bf2 {[%clk 0:00:24.4]} 41...
Ng7 {[%clk 0:00:27]} 42. Kd5 {[%clk 0:00:21.9]} 42... Ne8 {[%clk 0:00:13.9]} 43.
Ke5 {[%clk 0:00:21.6]} 43... Nc7 {[%clk 0:00:13.8]} 44. b6 {[%clk 0:00:12.9]}
44... Ne6 {[%clk 0:00:13.4]} 45. Kf6 {[%clk 0:00:12.2]} 45... Nd8 {[%clk
0:00:12.9]} 46. Kg5 {[%clk 0:00:12]} 46... Ne6+ {[%clk 0:00:12.8]} 47. Kxh5
{[%clk 0:00:12.5]} 47... Kc6 {[%clk 0:00:12.8]} 48. Kg4 {[%clk 0:00:12.6]} 48...
Ng7 {[%clk 0:00:11.5]} 49. Kxf4 {[%clk 0:00:12.2]} 49... Nh5+ {[%clk 0:00:11.3]}
50. Kg4 {[%clk 0:00:12]} 50... Nf6+ {[%clk 0:00:11.7]} 51. Kf5 {[%clk
0:00:12.1]} 1-0

[Event "Late-Titled-Tuesday-Blitz-October-10-2023"]
[Site "Chess.com"]
[Date "2023.10.10"]
[Round "4"]
[White "karinachess1"]
[Black "Dr_crypt"]
[Result "1/2-1/2"]
[WhiteElo "2587"]
[BlackElo "2404"]
[TimeControl "180+1"]
[EndTime "14:37:22 PDT"]
[Termination "Game drawn by repetition"]

1. d4 {[%clk 0:03:00.9]} 1... Nf6 {[%clk 0:03:00]} 2. c4 {[%clk 0:03:01.1]} 2...
e6 {[%clk 0:03:00.1]} 3. Nc3 {[%clk 0:03:01.1]} 3... Bb4 {[%clk 0:03:00.6]} 4.
Qc2 {[%clk 0:03:00]} 4... O-O {[%clk 0:02:57.3]} 5. a3 {[%clk 0:03:00.5]} 5...
Bxc3+ {[%clk 0:02:57.5]} 6. Qxc3 {[%clk 0:03:01.4]} 6... b5 {[%clk 0:02:57.9]}
7. cxb5 {[%clk 0:02:58.8]} 7... c6 {[%clk 0:02:57.8]} 8. a4 {[%clk 0:02:35.3]}
8... cxb5 {[%clk 0:02:53.9]} 9. axb5 {[%clk 0:02:36.2]} 9... Bb7 {[%clk
0:02:54.6]} 10. Nf3 {[%clk 0:02:36.8]} 10... d6 {[%clk 0:02:41.4]} 11. e3 {[%clk
0:02:30.4]} 11... Nbd7 {[%clk 0:02:38.6]} 12. Be2 {[%clk 0:02:30.7]} 12... Ne4
{[%clk 0:02:30.1]} 13. Qa3 {[%clk 0:02:29.5]} 13... Nb6 {[%clk 0:02:02.2]} 14.
O-O {[%clk 0:02:28.1]} 14... f5 {[%clk 0:01:58.9]} 15. Nd2 {[%clk 0:02:24.2]}
15... Qg5 {[%clk 0:01:29.9]} 16. f3 {[%clk 0:02:15.1]} 16... Nxd2 {[%clk
0:01:24.2]} 17. Bxd2 {[%clk 0:02:16]} 17... Rfd8 {[%clk 0:01:15.1]} 18. Rac1
{[%clk 0:01:53.4]} 18... Nd5 {[%clk 0:01:04.9]} 19. Qd3 {[%clk 0:01:53]} 19...
Qe7 {[%clk 0:00:56.5]} 20. e4 {[%clk 0:01:46.1]} 20... fxe4 {[%clk 0:00:44.8]}
21. fxe4 {[%clk 0:01:47]} 21... Nf6 {[%clk 0:00:45.5]} 22. Bg5 {[%clk
0:01:42.9]} 22... e5 {[%clk 0:00:37.8]} 23. d5 {[%clk 0:01:36.1]} 23... Rf8
{[%clk 0:00:37.2]} 24. Qe3 {[%clk 0:01:28.5]} 24... h6 {[%clk 0:00:28.6]} 25.
Bxf6 {[%clk 0:01:25]} 25... Rxf6 {[%clk 0:00:28.8]} 26. Bg4 {[%clk 0:01:25.5]}
26... Rxf1+ {[%clk 0:00:27]} 27. Rxf1 {[%clk 0:01:26.4]} 27... Bc8 {[%clk
0:00:26.5]} 28. Qh3 {[%clk 0:01:11.5]} 28... Bxg4 {[%clk 0:00:24.3]} 29. Qxg4
{[%clk 0:01:12.4]} 29... Rb8 {[%clk 0:00:22.6]} 30. Rc1 {[%clk 0:01:03.6]} 30...
Kh7 {[%clk 0:00:18.3]} 31. Rc6 {[%clk 0:00:35.4]} 31... Rxb5 {[%clk 0:00:17.3]}
32. Qf5+ {[%clk 0:00:35.8]} 32... g6 {[%clk 0:00:16.6]} 33. Qc8 {[%clk
0:00:31.9]} 33... Rb7 {[%clk 0:00:09]} 34. Rxd6 {[%clk 0:00:30.8]} 34... Rc7
{[%clk 0:00:06.9]} 35. Qe6 {[%clk 0:00:28.7]} 35... Rc1+ {[%clk 0:00:06.8]} 36.
Kf2 {[%clk 0:00:22.1]} 36... Rc2+ {[%clk 0:00:06.9]} 37. Kf3 {[%clk 0:00:16]}
37... Qf8+ {[%clk 0:00:04.2]} 38. Qf6 {[%clk 0:00:16.4]} 38... Qxf6+ {[%clk
0:00:04.7]} 39. Rxf6 {[%clk 0:00:17.3]} 39... Rxb2 {[%clk 0:00:05.4]} 40. Rf7+
{[%clk 0:00:17.7]} 40... Kg8 {[%clk 0:00:05.8]} 41. Rxa7 {[%clk 0:00:18.6]}
41... Rb3+ {[%clk 0:00:06.4]} 42. Kf2 {[%clk 0:00:18.7]} 42... Rb2+ {[%clk
0:00:06.9]} 43. Kf3 {[%clk 0:00:14.6]} 43... Rb3+ {[%clk 0:00:07.5]} 44. Kg4
{[%clk 0:00:15.1]} 44... Rb4 {[%clk 0:00:07.8]} 45. Kf3 {[%clk 0:00:12.6]} 45...
Rb3+ {[%clk 0:00:08.5]} 1/2-1/2